[Event "94th Paris-ch  2019"]
[Site "Paris"]
[Date "2019.07.14"]
[Round "9.1"]
[White "Chalmeta Ugas, Ramon"]
[Black "Moussard, Jules"]
[Result "0-1"]
[ECO "B52"]
[WhiteElo "2232"]
[BlackElo "2576"]
[Annotator "ChessBase"]
[PlyCount "88"]
[EventDate "2019.07.07"]
[EventType "swiss"]
[EventCountry "FRA"]
[SourceTitle "playchess.com"]
[Source "ChessBase"]
[SourceQuality "1"]
[TimeControl "5400+30"]

1. e4 {[%emt 0:00:00]} c5 {[%emt 0:05:32]} 2. Nf3 {[%emt 0:00:00]} d6 {[%emt 0:00:03]} 3. Bb5+ {[%emt 0:00:00]} Bd7 {[%emt 0:00:04]} 4. Bxd7+ {[%emt 0:00:00]} Nxd7 {[%emt 0:00:07]} 5. O-O {[%emt 0:00:08]} Ngf6 {[%emt 0:00:03]} 6. Qe2 {[%emt 0:00:37]} Rc8 {[%emt 0:00:04]} 7. b3 {[%emt 0:07:14]} g6 {[%emt 0:00:59]} 8. Bb2 {[%emt 0:00:34]} Bg7 {[%emt 0:00:14]} 9. d4 {[%emt 0:05:32]} cxd4 {[%emt 0:06:05]} 10. Nxd4 {[%emt 0:02:02]} Nc5 {[%emt 0:01:57]} 11. Nd2 {[%emt 0:02:25]} O-O {[%emt 0:07:50]} 12. c4 {[%emt 0:02:11]} e6 {[%emt 0:01:14]} 13. Kh1 {[%emt 0:05:32]} Re8 {[%emt 0:03:50]} 14. Rad1 {[%emt 0:05:42]} a6 {[%emt 0:03:42]} 15. a3 {[%emt 0:07:30]} Qc7 {[%emt 0:06:18]} 16. b4 {[%emt 0:06:33]} Na4 {[%emt 0:03:55]} 17. Ba1 {[%emt 0:00:16]} Nd7 {[%emt 0:00:59]} 18. Rc1 {[%emt 0:13:09]} b5 {[%emt 0:10:34]} 19. Qd1 {[%emt 0:05:18]} Qa7 {[%emt 0:17:26]} 20. N2f3 {[%emt 0:04:52]} Bh6 {[%emt 0:00:48]} 21. Nd2 {[%emt 0:05:21]} e5 {[%emt 0:06:04]} 22. N4f3 {[%emt 0:03:32]} Nab6 {[%emt 0:03:16]} 23. cxb5 {[%emt 0:03:17]} axb5 {[%emt 0:00:23]} 24. Rxc8 {[%emt 0:00:29]} Rxc8 {[%emt 0:00:05]} 25. Bb2 {[%emt 0:00:36]} Nc4 {[%emt 0:02:18]} 26. Nxc4 {[%emt 0:00:18]} bxc4 {[%emt 0:00:15]} 27. Qc2 {[%emt 0:03:48]} c3 {[%emt 0:01:38]} 28. Bc1 {[%emt 0:04:35]} Bxc1 {[%emt 0:00:07]} 29. Qxc1 {[%emt 0:00:07]} Nf6 {[%emt 0:01:28]} 30. Qc2 {[%emt 0:04:35]} Qxa3 {[%emt 0:00:32]} 31. Rb1 {[%emt 0:00:02]} Qa8 {[%emt 0:00:23]} 32. b5 {[%emt 0:00:50]} Qxe4 {[%emt 0:00:18]} 33. Qc1 {[%emt 0:00:24]} c2 {[%emt 0:00:48]} 34. Ra1 {[%emt 0:00:23]} Ng4 {[%emt 0:00:13]} 35. Kg1 {[%emt 0:00:21]} Qe2 {[%emt 0:00:05]} 36. h3 {[%emt 0:01:14]} Qxf2+ {[%emt 0:00:07]} 37. Kh1 {[%emt 0:00:04]} Ne3 {[%emt 0:00:04]} 38. Ne1 {[%emt 0:00:32]} Rc3 {[%emt 0:01:42]} 39. b6 {[%emt 0:00:57]} Kg7 {[%emt 0:01:05]} 40. b7 {[%emt 0:03:56]} Nxg2 {[%emt 0:00:29]} 41. Ra3 {[%emt 0:01:10]} Nxe1 {[%emt 0:00:14]} 42. Qg5 {[%emt 0:01:28]} c1=Q {[%emt 0:00:26]} 43. b8=Q {[%emt 0:00:59]} Nf3+ {[%emt 0:00:46]} 44. Qxc1 {[%emt 0:00:06]} Qh2# {[%emt 0:00:05]} 0-1

[Event "94th Paris-ch  2019"]
[Site "Paris"]
[Date "2019.07.14"]
[Round "9.2"]
[White "Abergel, Thal"]
[Black "Moksh Amit Doshi"]
[Result "1/2-1/2"]
[ECO "A30"]
[WhiteElo "2450"]
[BlackElo "2229"]
[Annotator "ChessBase"]
[PlyCount "31"]
[EventDate "2019.07.07"]
[EventType "swiss"]
[EventCountry "FRA"]
[SourceTitle "playchess.com"]
[Source "ChessBase"]
[SourceQuality "1"]
[TimeControl "5400+30"]

1. Nf3 {[%emt 0:00:00]} Nf6 {[%emt 0:02:00]} 2. c4 {[%emt 0:00:09]} c5 {[%emt 0:00:54]} 3. b3 {[%emt 0:01:03]} g6 {[%emt 0:00:22]} 4. Bb2 {[%emt 0:00:06]} Bg7 {[%emt 0:00:05]} 5. g3 {[%emt 0:00:14]} b6 {[%emt 0:00:07]} 6. Bg2 {[%emt 0:00:12]} Bb7 {[%emt 0:00:07]} 7. O-O {[%emt 0:01:24]} O-O {[%emt 0:00:06]} 8. Nc3 {[%emt 0:01:47]} d5 {[%emt 0:00:22]} 9. Nxd5 {[%emt 0:02:38]} Nxd5 {[%emt 0:00:08]} 10. Bxg7 {[%emt 0:00:08]} Kxg7 {[%emt 0:00:05]} 11. cxd5 {[%emt 0:00:09]} Qxd5 {[%emt 0:00:05]} 12. d4 {[%emt 0:00:30]} cxd4 {[%emt 0:00:07]} 13. Qxd4+ {[%emt 0:00:13]} Qxd4 {[%emt 0:00:06]} 14. Nxd4 {[%emt 0:00:03]} Bxg2 {[%emt 0:00:11]} 15. Kxg2 {[%emt 0:00:03]} a5 {[%emt 0:00:48]} 16. Rac1 {[%emt 0:02:18]} 1/2-1/2

[Event "94th Paris-ch  2019"]
[Site "Paris"]
[Date "2019.07.14"]
[Round "9.4"]
[White "Bonte, Andrei-Mihai"]
[Black "Guliyev, Namig"]
[Result "0-1"]
[ECO "A09"]
[WhiteElo "2337"]
[BlackElo "2551"]
[Annotator "ChessBase"]
[PlyCount "50"]
[EventDate "2019.07.07"]
[EventType "swiss"]
[EventCountry "FRA"]
[SourceTitle "playchess.com"]
[Source "ChessBase"]
[SourceQuality "1"]
[TimeControl "5400+30"]

1. Nf3 {[%emt 0:04:55]} d5 {[%emt 0:00:00]} 2. c4 {[%emt 0:00:33]} d4 {[%emt 0:00:00]} 3. e3 {[%emt 0:02:03]} Nc6 {[%emt 0:00:09]} 4. exd4 {[%emt 0:00:16]} Nxd4 {[%emt 0:00:04]} 5. Nxd4 {[%emt 0:00:09]} Qxd4 {[%emt 0:00:05]} 6. Nc3 {[%emt 0:00:05]} c6 {[%emt 0:00:43]} 7. d3 {[%emt 0:00:50]} Nh6 {[%emt 0:00:05]} 8. Be3 {[%emt 0:02:10]} Qd8 {[%emt 0:00:08]} 9. Bxh6 {[%emt 0:17:17]} gxh6 {[%emt 0:00:06]} 10. d4 {[%emt 0:03:49]} Bg7 {[%emt 0:00:17]} 11. d5 {[%emt 0:03:31]} O-O {[%emt 0:01:17]} 12. Bd3 {[%emt 0:08:06]} e5 {[%emt 0:04:41]} 13. Qc2 {[%emt 0:06:35]} f5 {[%emt 0:00:21]} 14. f3 {[%emt 0:00:27]} e4 {[%emt 0:14:08]} 15. fxe4 {[%emt 0:00:26]} fxe4 {[%emt 0:00:10]} 16. Nxe4 {[%emt 0:00:09]} cxd5 {[%emt 0:00:22]} 17. cxd5 {[%emt 0:00:06]} Bg4 {[%emt 0:00:27]} 18. h3 {[%emt 0:13:59]} Bh5 {[%emt 0:04:38]} 19. Rc1 {[%emt 0:03:25]} Qb6 {[%emt 0:07:54]} 20. Qd2 {[%emt 0:01:24]} Rae8 {[%emt 0:02:50]} 21. Rc4 {[%emt 0:02:19]} Bd4 {[%emt 0:00:06]} 22. Rf1 {[%emt 0:02:39]} Rxf1+ {[%emt 0:05:22]} 23. Kxf1 {[%emt 0:00:15]} Rf8+ {[%emt 0:00:02]} 24. Ke1 {[%emt 0:00:22]} Bc3 {[%emt 0:00:09]} 25. Qxc3 {[%emt 0:01:48]} Qe3+ {[%emt 0:00:11]} 0-1

[Event "94th Paris-ch  2019"]
[Site "Paris"]
[Date "2019.07.14"]
[Round "9.5"]
[White "Anand Nadar"]
[Black "Stephan, Victor"]
[Result "1/2-1/2"]
[ECO "E01"]
[WhiteElo "2358"]
[BlackElo "2358"]
[Annotator "NA"]
[PlyCount "21"]
[EventDate "2019.07.07"]
[EventType "swiss"]
[EventCountry "FRA"]
[SourceTitle "playchess.com"]
[Source "ChessBase"]
[SourceQuality "1"]
[TimeControl "5400+30"]

1. d4 {[%emt 0:00:00]} Nf6 {[%emt 0:01:33]} 2. Nf3 {[%emt 0:01:01]} e6 {[%emt 0:00:15]} 3. c4 {[%emt 0:00:08]} c5 {[%emt 0:00:20]} 4. g3 {[%emt 0:09:06]} cxd4 {[%emt 0:00:28]} 5. Nxd4 {[%emt 0:00:06]} d5 {[%emt 0:00:09]} 6. Bg2 {[%emt 0:00:07]} e5 {[%emt 0:00:15]} 7. Nf3 {[%emt 0:00:05]} d4 {[%emt 0:00:14]} 8. O-O {[%emt 0:00:04]} Nc6 {[%emt 0:00:29]} 9. e3 {[%emt 0:00:06]} Be7 {[%emt 0:00:29]} 10. exd4 {[%emt 0:00:10]} exd4 {[%emt 0:00:09]} 11. Re1 {[%emt 0:03:53]} 1/2-1/2

[Event "94th Paris-ch  2019"]
[Site "Paris"]
[Date "2019.07.14"]
[Round "9.6"]
[White "Guilleux, Fabien"]
[Black "Lux, Hugo de Melo"]
[Result "1/2-1/2"]
[ECO "A31"]
[WhiteElo "2442"]
[BlackElo "2231"]
[Annotator "NA"]
[PlyCount "66"]
[EventDate "2019.07.07"]
[EventType "swiss"]
[EventCountry "FRA"]
[SourceTitle "playchess.com"]
[Source "ChessBase"]
[SourceQuality "1"]
[TimeControl "5400+30"]

1. Nf3 {[%emt 0:00:00]} c5 {[%emt 0:00:01]} 2. c4 {[%emt 0:00:27]} Nc6 {[%emt 0:00:13]} 3. d4 {[%emt 0:00:09]} cxd4 {[%emt 0:00:05]} 4. Nxd4 {[%emt 0:00:09]} Nf6 {[%emt 0:00:51]} 5. g3 {[%emt 0:01:27]} e5 {[%emt 0:01:27]} 6. Nb5 {[%emt 0:00:58]} Bb4+ {[%emt 0:00:34]} 7. N1c3 {[%emt 0:07:43]} d6 {[%emt 0:01:03]} 8. a3 {[%emt 0:16:17]} Bxc3+ {[%emt 0:02:16]} 9. Nxc3 {[%emt 0:00:03]} Be6 {[%emt 0:00:14]} 10. Qa4 {[%emt 0:00:10]} d5 {[%emt 0:04:58]} 11. cxd5 {[%emt 0:10:57]} Nxd5 {[%emt 0:02:22]} 12. Bg2 {[%emt 0:00:09]} O-O {[%emt 0:00:29]} 13. Nxd5 {[%emt 0:10:12]} Bxd5 {[%emt 0:03:37]} 14. e4 {[%emt 0:00:08]} b5 {[%emt 0:15:41]} 15. Qxb5 {[%emt 0:12:45]} Nd4 {[%emt 0:03:03]} 16. Qxd5 {[%emt 0:00:17]} Nc2+ {[%emt 0:00:07]} 17. Ke2 {[%emt 0:00:08]} Nxa1 {[%emt 0:06:21]} 18. Qxd8 {[%emt 0:13:44]} Rfxd8 {[%emt 0:00:27]} 19. Bd2 {[%emt 0:00:02]} Nb3 {[%emt 0:03:23]} 20. Bc3 {[%emt 0:00:09]} f6 {[%emt 0:03:43]} 21. Ke3 {[%emt 0:06:09]} Kh8 {[%emt 0:12:12]} 22. f4 {[%emt 0:03:41]} Nd4 {[%emt 0:00:36]} 23. a4 {[%emt 0:00:48]} Rac8 {[%emt 0:05:21]} 24. Rf1 {[%emt 0:07:09]} Kg8 {[%emt 0:06:46]} 25. Rf2 {[%emt 0:01:30]} Rc4 {[%emt 0:01:49]} 26. a5 {[%emt 0:00:10]} Rc5 {[%emt 0:00:15]} 27. Bf1 {[%emt 0:01:56]} Nc6 {[%emt 0:06:16]} 28. a6 {[%emt 0:00:17]} g6 {[%emt 0:00:15]} 29. Be2 {[%emt 0:00:45]} Kg7 {[%emt 0:00:24]} 30. h4 {[%emt 0:00:54]} Nd4 {[%emt 0:06:21]} 31. Bd3 {[%emt 0:00:56]} Nc6 {[%emt 0:02:20]} 32. Be2 {[%emt 0:00:07]} Nd4 {[%emt 0:05:17]} 33. Bd3 {[%emt 0:00:19]} Nc6 {[%emt 0:00:42]} 1/2-1/2

[Event "94th Paris-ch  2019"]
[Site "Paris"]
[Date "2019.07.14"]
[Round "9.7"]
[White "Fitzsimons, David"]
[Black "Dixit, Nikhil"]
[Result "1-0"]
[ECO "B08"]
[WhiteElo "2301"]
[BlackElo "2318"]
[Annotator "NA"]
[PlyCount "65"]
[EventDate "2019.07.07"]
[EventType "swiss"]
[EventCountry "FRA"]
[SourceTitle "playchess.com"]
[Source "ChessBase"]
[SourceQuality "1"]
[TimeControl "5400+30"]

1. e4 {[%emt 0:01:12]} g6 {[%emt 0:00:00]} 2. d4 {[%emt 0:00:10]} Bg7 {[%emt 0:00:00]} 3. Nc3 {[%emt 0:00:14]} c6 {[%emt 0:00:00]} 4. Nf3 {[%emt 0:00:21]} d6 {[%emt 0:00:03]} 5. Be3 {[%emt 0:00:12]} Nf6 {[%emt 0:00:32]} 6. Qd2 {[%emt 0:00:25]} O-O {[%emt 0:01:10]} 7. Bh6 {[%emt 0:00:29]} Bg4 {[%emt 0:04:33]} 8. h4 {[%emt 0:01:56]} b5 {[%emt 0:12:58]} 9. Bd3 {[%emt 0:00:11]} Bxf3 {[%emt 0:04:09]} 10. gxf3 {[%emt 0:00:07]} Nh5 {[%emt 0:01:02]} 11. Bxg7 {[%emt 0:00:38]} Kxg7 {[%emt 0:00:46]} 12. f4 {[%emt 0:00:27]} e5 {[%emt 0:17:28]} 13. fxe5 {[%emt 0:00:26]} dxe5 {[%emt 0:00:10]} 14. dxe5 {[%emt 0:00:15]} Qd4 {[%emt 0:00:50]} 15. O-O-O {[%emt 0:04:03]} Qxe5 {[%emt 0:00:35]} 16. Ne2 {[%emt 0:00:26]} Nd7 {[%emt 0:08:20]} 17. f4 {[%emt 0:02:08]} Qe6 {[%emt 0:00:25]} 18. Kb1 {[%emt 0:11:46]} Kg8 {[%emt 0:07:50]} 19. Rhg1 {[%emt 0:05:38]} Nc5 {[%emt 0:10:12]} 20. f5 {[%emt 0:02:17]} Qf6 {[%emt 0:05:35]} 21. Rg5 {[%emt 0:03:47]} Nxd3 {[%emt 0:06:54]} 22. cxd3 {[%emt 0:00:14]} h6 {[%emt 0:01:48]} 23. e5 {[%emt 0:01:20]} Qh8 {[%emt 0:02:28]} 24. Rxh5 {[%emt 0:00:18]} gxh5 {[%emt 0:00:31]} 25. f6 {[%emt 0:00:06]} Rfc8 {[%emt 0:02:38]} 26. Rg1+ {[%emt 0:01:02]} Kf8 {[%emt 0:00:07]} 27. Rg7 {[%emt 0:00:24]} Ke8 {[%emt 0:01:13]} 28. Qb4 {[%emt 0:00:47]} Rc7 {[%emt 0:00:43]} 29. e6 {[%emt 0:01:49]} Rd8 {[%emt 0:01:33]} 30. Nf4 {[%emt 0:00:35]} a5 {[%emt 0:02:03]} 31. Qe4 {[%emt 0:00:19]} Qf8 {[%emt 0:01:06]} 32. exf7+ {[%emt 0:00:07]} Kd7 {[%emt 0:00:18]} 33. Qe6# {[%emt 0:00:05]} 1-0

[Event "94th Paris-ch  2019"]
[Site "Paris"]
[Date "2019.07.14"]
[Round "9.8"]
[White "Macon, Arthur"]
[Black "Bergez, Luc"]
[Result "1/2-1/2"]
[ECO "A24"]
[WhiteElo "2270"]
[BlackElo "2308"]
[Annotator "NA"]
[PlyCount "155"]
[EventDate "2019.07.07"]
[EventType "swiss"]
[EventCountry "FRA"]
[SourceTitle "playchess.com"]
[Source "ChessBase"]
[SourceQuality "1"]
[TimeControl "5400+30"]

1. Nf3 {[%emt 0:00:00]} Nf6 {[%emt 0:02:28]} 2. g3 {[%emt 0:00:00]} g6 {[%emt 0:00:15]} 3. Bg2 {[%emt 0:00:17]} Bg7 {[%emt 0:00:11]} 4. O-O {[%emt 0:00:15]} O-O {[%emt 0:00:11]} 5. c4 {[%emt 0:00:09]} d6 {[%emt 0:01:13]} 6. Nc3 {[%emt 0:00:24]} Nbd7 {[%emt 0:01:03]} 7. d3 {[%emt 0:05:35]} c6 {[%emt 0:02:03]} 8. Bd2 {[%emt 0:07:41]} e5 {[%emt 0:00:49]} 9. Ne1 {[%emt 0:02:03]} Nb6 {[%emt 0:02:57]} 10. Rc1 {[%emt 0:05:10]} Be6 {[%emt 0:01:03]} 11. Nf3 {[%emt 0:05:26]} h6 {[%emt 0:15:15]} 12. b3 {[%emt 0:04:27]} Qd7 {[%emt 0:04:32]} 13. c5 {[%emt 0:01:03]} Nbd5 {[%emt 0:00:29]} 14. cxd6 {[%emt 0:07:23]} Qxd6 {[%emt 0:00:28]} 15. Qc2 {[%emt 0:07:06]} Rfe8 {[%emt 0:05:24]} 16. Rfd1 {[%emt 0:00:58]} Rad8 {[%emt 0:04:26]} 17. Qb1 {[%emt 0:05:52]} Qb8 {[%emt 0:01:44]} 18. Na4 {[%emt 0:04:49]} Bc8 {[%emt 0:01:53]} 19. e4 {[%emt 0:01:38]} Nc7 {[%emt 0:00:30]} 20. Bc3 {[%emt 0:01:34]} Nb5 {[%emt 0:01:20]} 21. Bb2 {[%emt 0:04:51]} Bg4 {[%emt 0:00:09]} 22. h3 {[%emt 0:01:40]} Bxf3 {[%emt 0:00:10]} 23. Bxf3 {[%emt 0:00:04]} Nd4 {[%emt 0:00:16]} 24. Bxd4 {[%emt 0:00:05]} Rxd4 {[%emt 0:00:19]} 25. Nc3 {[%emt 0:02:54]} Qd8 {[%emt 0:02:32]} 26. Ne2 {[%emt 0:02:47]} Rd6 {[%emt 0:00:15]} 27. b4 {[%emt 0:02:45]} Qd7 {[%emt 0:02:06]} 28. Bg2 {[%emt 0:01:21]} h5 {[%emt 0:00:58]} 29. a4 {[%emt 0:00:59]} h4 {[%emt 0:01:04]} 30. gxh4 {[%emt 0:05:18]} Nh5 {[%emt 0:00:36]} 31. b5 {[%emt 0:00:27]} Bf6 {[%emt 0:00:51]} 32. bxc6 {[%emt 0:00:42]} bxc6 {[%emt 0:00:11]} 33. Rc3 {[%emt 0:01:44]} Bxh4 {[%emt 0:01:50]} 34. Rb3 {[%emt 0:00:37]} Qd8 {[%emt 0:00:35]} 35. Rf1 {[%emt 0:02:17]} Qa5 {[%emt 0:02:47]} 36. Rb8 {[%emt 0:01:19]} Rdd8 {[%emt 0:00:36]} 37. Rxd8 {[%emt 0:00:14]} Rxd8 {[%emt 0:00:12]} 38. Qc2 {[%emt 0:00:05]} Qa6 {[%emt 0:01:47]} 39. Rd1 {[%emt 0:03:31]} Qb6 {[%emt 0:00:28]} 40. Rf1 {[%emt 0:00:13]} Rd6 {[%emt 0:01:49]} 41. Qc3 {[%emt 0:01:27]} Bf6 {[%emt 0:00:15]} 42. Qc2 {[%emt 0:01:21]} Qa6 {[%emt 0:03:14]} 43. Rd1 {[%emt 0:00:09]} Ng7 {[%emt 0:01:46]} 44. Bf3 {[%emt 0:01:37]} Bh4 {[%emt 0:03:34]} 45. d4 {[%emt 0:03:26]} Rf6 {[%emt 0:00:43]} 46. Kg2 {[%emt 0:01:25]} exd4 {[%emt 0:03:53]} 47. Nxd4 {[%emt 0:00:07]} Qa5 {[%emt 0:00:26]} 48. Qd2 {[%emt 0:00:55]} Qe5 {[%emt 0:02:17]} 49. Qe3 {[%emt 0:01:47]} Bg5 {[%emt 0:09:36]} 50. Qb3 {[%emt 0:00:05]} Bf4 {[%emt 0:00:39]} 51. Ne2 {[%emt 0:00:29]} Qg5+ {[%emt 0:00:17]} 52. Bg4 {[%emt 0:01:52]} Bc7 {[%emt 0:02:23]} 53. Qe3 {[%emt 0:01:24]} Qa5 {[%emt 0:00:49]} 54. Qc3 {[%emt 0:00:57]} Qxa4 {[%emt 0:04:57]} 55. Qxf6 {[%emt 0:00:37]} Qxd1 {[%emt 0:00:11]} 56. Qxc6 {[%emt 0:00:05]} Bb6 {[%emt 0:00:26]} 57. Qc8+ {[%emt 0:00:21]} Kh7 {[%emt 0:00:53]} 58. Qc4 {[%emt 0:00:07]} Kg8 {[%emt 0:05:55]} 59. Qc8+ {[%emt 0:00:02]} Qd8 {[%emt 0:00:13]} 60. Qxd8+ Bxd8 {[%emt 0:00:01]} 61. Nc3 {[%emt 0:00:59]} a5 {[%emt 0:00:30]} 62. f4 {[%emt 0:00:31]} Bc7 {[%emt 0:03:27]} 63. f5 {[%emt 0:00:44]} Be5 {[%emt 0:00:26]} 64. Na4 {[%emt 0:00:19]} g5 {[%emt 0:01:12]} 65. Bd1 {[%emt 0:00:07]} Bd4 {[%emt 0:00:13]} 66. Kf3 {[%emt 0:01:14]} Kf8 {[%emt 0:03:22]} 67. Ke2 {[%emt 0:00:44]} Ke7 {[%emt 0:00:02]} 68. Kd3 {[%emt 0:00:06]} Be5 {[%emt 0:02:17]} 69. Kc4 {[%emt 0:00:10]} Ne8 {[%emt 0:00:39]} 70. Kd5 {[%emt 0:00:54]} Bf4 {[%emt 0:00:26]} 71. Bc2 {[%emt 0:00:54]} Nf6+ {[%emt 0:00:13]} 72. Kc4 {[%emt 0:00:54]} Kd6 {[%emt 0:00:40]} 73. Nc5 {[%emt 0:00:21]} Be3 {[%emt 0:00:41]} 74. Nb7+ {[%emt 0:02:21]} Ke5 {[%emt 0:00:01]} 75. Nd8 {[%emt 0:02:00]} Nxe4 {[%emt 0:01:52]} 76. Nxf7+ {[%emt 0:00:04]} Kf4 {[%emt 0:01:14]} 77. Bxe4 {[%emt 0:00:18]} Kxe4 {[%emt 0:00:10]} 78. Kb5 {[%emt 0:00:08]} 1/2-1/2

[Event "94th Paris-ch  2019"]
[Site "Paris"]
[Date "2019.07.14"]
[Round "9.9"]
[White "O`Sullivan, Thomas"]
[Black "Albaric, Etienne"]
[Result "1-0"]
[ECO "E34"]
[WhiteElo "2291"]
[BlackElo "2225"]
[Annotator "NA"]
[PlyCount "57"]
[EventDate "2019.07.07"]
[EventType "swiss"]
[EventCountry "FRA"]
[SourceTitle "playchess.com"]
[Source "ChessBase"]
[SourceQuality "1"]
[TimeControl "5400+30"]

1. d4 {[%emt 0:11:14]} Nf6 {[%emt 0:09:46]} 2. c4 {[%emt 0:00:18]} e6 {[%emt 0:00:16]} 3. Nc3 {[%emt 0:00:04]} Bb4 {[%emt 0:00:24]} 4. Qc2 {[%emt 0:00:06]} d5 {[%emt 0:00:16]} 5. cxd5 {[%emt 0:00:05]} Qxd5 {[%emt 0:00:04]} 6. e3 {[%emt 0:00:09]} c5 {[%emt 0:00:47]} 7. Bd2 {[%emt 0:00:06]} Bxc3 {[%emt 0:00:27]} 8. Bxc3 {[%emt 0:00:02]} cxd4 {[%emt 0:00:47]} 9. Bxd4 {[%emt 0:00:05]} Nc6 {[%emt 0:00:05]} 10. Bc3 {[%emt 0:00:04]} O-O {[%emt 0:01:37]} 11. Nf3 {[%emt 0:00:09]} Rd8 {[%emt 0:00:56]} 12. Be2 {[%emt 0:00:08]} Qc5 {[%emt 0:00:38]} 13. Rc1 {[%emt 0:12:18]} Bd7 {[%emt 0:37:42]} 14. O-O {[%emt 0:03:13]} Rac8 {[%emt 0:02:21]} 15. Qb1 {[%emt 0:08:05]} Qe7 {[%emt 0:01:47]} 16. Ng5 {[%emt 0:05:36]} e5 {[%emt 0:01:27]} 17. Bc4 {[%emt 0:02:30]} Be8 {[%emt 0:00:35]} 18. Rfd1 {[%emt 0:03:25]} a6 {[%emt 0:03:35]} 19. Ne4 {[%emt 0:15:54]} b5 {[%emt 0:02:46]} 20. Nxf6+ {[%emt 0:00:18]} Qxf6 {[%emt 0:00:02]} 21. Bd5 {[%emt 0:00:25]} b4 {[%emt 0:10:17]} 22. Be1 {[%emt 0:08:30]} Rd6 {[%emt 0:04:46]} 23. Bxb4 {[%emt 0:08:30]} Rdd8 {[%emt 0:08:17]} 24. Bc3 {[%emt 0:00:20]} Ne7 {[%emt 0:03:15]} 25. Be4 {[%emt 0:00:30]} h5 {[%emt 0:00:03]} 26. Rxd8 {[%emt 0:01:04]} Rxd8 {[%emt 0:00:01]} 27. Rd1 {[%emt 0:00:12]} Rc8 {[%emt 0:00:23]} 28. Qd3 {[%emt 0:01:10]} Qe6 {[%emt 0:00:37]} 29. Qd6 {[%emt 0:02:48]} 1-0

[Event "94th Paris-ch  2019"]
[Site "Paris"]
[Date "2019.07.14"]
[Round "9.10"]
[White "Bharath Subramaniyam H"]
[Black "Ojas Kulkarni"]
[Result "1-0"]
[ECO "C76"]
[WhiteElo "2405"]
[BlackElo "2251"]
[Annotator "NA"]
[PlyCount "57"]
[EventDate "2019.07.07"]
[EventType "swiss"]
[EventCountry "FRA"]
[SourceTitle "playchess.com"]
[Source "ChessBase"]
[SourceQuality "1"]
[TimeControl "5400+30"]

1. e4 {[%emt 0:00:00]} e5 {[%emt 0:00:17]} 2. Nf3 {[%emt 0:00:00]} Nc6 {[%emt 0:00:11]} 3. Bb5 {[%emt 0:00:00]} a6 {[%emt 0:00:08]} 4. Ba4 {[%emt 0:00:07]} d6 {[%emt 0:00:05]} 5. c3 {[%emt 0:00:34]} Bd7 {[%emt 0:00:08]} 6. d4 {[%emt 0:01:29]} g6 {[%emt 0:00:24]} 7. Bg5 {[%emt 0:02:28]} f6 {[%emt 0:00:56]} 8. Be3 {[%emt 0:00:25]} Nh6 {[%emt 0:01:49]} 9. Bb3 {[%emt 0:08:13]} Na5 {[%emt 0:02:09]} 10. O-O {[%emt 0:07:20]} Nxb3 {[%emt 0:00:49]} 11. Qxb3 {[%emt 0:00:25]} Qc8 {[%emt 0:00:09]} 12. c4 {[%emt 0:06:29]} Bg4 {[%emt 0:06:05]} 13. Nfd2 {[%emt 0:05:24]} Be6 {[%emt 0:00:51]} 14. f3 {[%emt 0:03:11]} Nf7 {[%emt 0:05:40]} 15. Nc3 {[%emt 0:02:14]} Bh6 {[%emt 0:01:03]} 16. Bxh6 {[%emt 0:02:21]} Nxh6 {[%emt 0:00:16]} 17. Nd5 {[%emt 0:00:47]} Kf7 {[%emt 0:02:49]} 18. f4 {[%emt 0:06:01]} exd4 {[%emt 0:01:44]} 19. Nf3 {[%emt 0:04:14]} c5 {[%emt 0:03:34]} 20. Nb6 {[%emt 0:03:13]} Qc6 {[%emt 0:00:23]} 21. Nxa8 {[%emt 0:00:12]} Rxa8 {[%emt 0:00:02]} 22. Ng5+ {[%emt 0:01:26]} fxg5 {[%emt 0:01:20]} 23. fxg5+ {[%emt 0:00:02]} Kg8 {[%emt 0:00:07]} 24. gxh6 {[%emt 0:00:09]} b5 {[%emt 0:00:04]} 25. cxb5 {[%emt 0:00:48]} Qxe4 {[%emt 0:00:53]} 26. Qg3 {[%emt 0:00:49]} Qd5 {[%emt 0:01:16]} 27. Rae1 {[%emt 0:02:50]} axb5 {[%emt 0:00:19]} 28. Qf4 {[%emt 0:01:29]} Bf5 {[%emt 0:02:39]} 29. g4 {[%emt 0:00:38]} 1-0